Cogmind - Beta 16 @@@ ROGUE MODE // 2025.11.02 @ 14:29:32 Player: JuustuToug Result: Destroyed by S-27 Virus with Autogun Performance ------------- Evolutions (5) 2500 Regions Visited (8) 1600 Robots Destroyed (74) 370 Value Destroyed (2500) 2500 Prototype IDs (7) 140 Alien Tech Used (0) 0 Bonus (1006) 1006 TOTAL SCORE: 8116 Bonus ------- Follower Combat Kills 686 Registered with UFD 300 Met Optimus in HQ 500 Friendly Fire -480 Cogmind --------- Core Integrity 0/1000 Matter 289/300 Energy 99/100 System Corruption 18% Temperature Cool (0) Movement Core (50) Location -5/Upper Caves Parts ------- > --- POWER (1) -------- (None) > --- PROPULSION (4) --- (None) > --- UTILITY (9) ------ Improved Signal Interpreter Advanced Terrain Scan Processor Improved Melee Analysis Suite Hacking Suite > --- WEAPON (3) ------- (None) > --- INVENTORY (5) ---- Improved Deuterium Engine Armored Leg Force Field Axe Ripper Peak State ------------ > --- POWER ------------ (None) > --- PROPULSION ------- Light Treads Flexi-carbon Leg Flexi-carbon Leg Flexi-carbon Leg > --- UTILITY ---------- High-capacity Storage Unit Improved Signal Interpreter Advanced Terrain Scanner Advanced Terrain Scan Processor Melee Analysis Suite Improved Melee Analysis Suite Core Analyzer Enhanced Scrap Shield > --- WEAPON ----------- Ripper Ripper Companion Sword > --- INVENTORY -------- Advanced Weight Redist. System Improved Terrain Scanner Seismic Detector Microactuators Medium Reflective Plating Force Field Hacking Suite Improved Dynamic Insulation System Improved EM Pulse Cannon Improved EM Pulse Cannon Improved EM Pulse Cannon Beam Cannon Plasma Cannon Heavy Assault Rifle Gauss Rifle Axe Ripper [Rating: 71] Favorites ----------- Power Makeshift Power Source Engine Makeshift Power Source Power Core Micro Nuclear Core Propulsion Carbon-fiber Leg Treads Spiked Treads Leg Carbon-fiber Leg Wheel Armored Wheel Utility High-capacity Storage Unit Device Deep Structural Scanner Storage High-capacity Storage Unit Processor Improved Melee Analysis Suite Hackware Hacking Suite Protection Hardened Light Armor Plating Weapon Companion Sword Energy Gun Subdweller Laser Energy Cannon Beam Cannon Ballistic Gun Assault Rifle Launcher Grenade Launcher Slashing Weapon Companion Sword Special Melee Weapon Improved Datajack Build | -11 -10 -10 -9 -6 -6 -5 -5 -5 ------- Run | Yrd Mat Sub Scr Fac Ext Fac Upp Upp Slots Evolved 10 | . . . . 8 . 2 . . Power . | . . . . . . . . . Propulsion 2 | . . . . 2 . . . . Utility 7 | . . . . 5 . 2 . . Weapon 1 | . . . . 1 . . . . Parts Attached 129 | 6 15 7 7 27 49 11 7 . Power 14 | 1 1 1 . 4 5 2 . . Engine 13 | 1 1 1 . 3 5 2 . . Core 1 | . . . . 1 . . . . Reactor . | . . . . . . . . . Propulsion 45 | 2 2 3 2 8 20 6 2 . Treads 12 | 2 . 2 . 4 4 . . . Leg 32 | . 1 1 2 4 16 6 2 . Wheel 1 | . 1 . . . . . . . Hover . | . . . . . . . . . Flight . | . . . . . . . . . Utility 43 | 1 5 . . 11 20 3 3 . Device 17 | . 1 . . 4 10 1 1 . Storage 3 | 1 2 . . . . . . . Processor 10 | . 1 . . 3 4 2 . . Hackware 2 | . . . . . 1 . 1 . Protection 11 | . 1 . . 4 5 . 1 . Artifact . | . . . . . . . . . Weapon 27 | 2 7 3 5 4 4 . 2 . Energy Gun 6 | . 2 2 1 1 . . . . Energy Cannon 3 | . 2 . . 1 . . . . Ballistic Gun 9 | 2 2 1 2 2 . . . . Ballistic Cannon . | . . . . . . . . . Launcher 1 | . 1 . . . . . . . Special Weapon . | . . . . . . . . . Impact Weapon . | . . . . . . . . . Slashing Weapon 7 | . . . 1 . 4 . 2 . Piercing Weapon . | . . . . . . . . . Special Melee Weapon 1 | . . . 1 . . . . . Unidentified Prototypes 2 | . . . 1 . . . 1 . Corrupted Parts 4 | . . . . . 4 . . . System Corruption 19 | . . . . . 19 . . . Parts Lost 79 | . 5 . 9 21 21 12 10 1 Power 10 | . . . . 3 4 2 1 . Propulsion 30 | . 2 . . 10 10 6 2 . Utility 23 | . . . 4 5 5 4 4 1 Weapon 16 | . 3 . 5 3 2 . 3 . Highest Loss Streak 12 | . 2 . 9 7 12 10 8 1 To Critical Strikes 2 | . . . . . . 1 1 . Average Backups 16 | 2 16 19 17 16 17 19 11 5 Power 1 | 1 1 2 . 2 1 . . 1 Propulsion 2 | 1 5 4 1 2 2 1 . 1 Utility 6 | . 1 4 8 6 8 7 5 1 Weapon 6 | . 7 8 6 4 4 8 5 2 Tool/Special . | . . . . . . . . . Unused Backups 53 | . 13 7 10 2 10 3 5 3 Power 11 | . 1 1 3 2 2 1 . 1 Propulsion 18 | . 10 3 2 . 2 . . 1 Utility 9 | . . . 2 . 4 1 1 1 Weapon 15 | . 2 3 3 . 2 1 4 . Tool/Special . | . . . . . . . . . Average Slot Usage (%) 90 | . 98 99 89 84 89 97 69 26 Engine 9 | . 13 14 13 5 5 4 . . Treads 5 | . 10 10 1 9 2 2 3 . Leg 11 | . 7 3 11 11 18 18 10 . Wheel 7 | . 10 14 13 2 . . . . Device 3 | . . . . 13 6 15 5 2 Storage 10 | . 14 14 13 6 6 5 3 . Processor 10 | . 7 . . 14 24 23 25 17 Protection 7 | . 5 14 9 6 3 5 2 . Energy Gun 2 | . 6 5 1 . . . . . Energy Cannon 5 | . 8 8 8 1 . . . . Ballistic Gun 6 | . 12 13 9 5 . . . . Slashing Weapon 6 | . . . 3 3 16 17 12 . Peak Build Rating 71 | 6 12 18 20 56 67 69 71 19 Average Rating 30 | 3 9 15 17 44 54 64 51 17 On Entrance 25 | . 6 11 18 20 41 58 60 19 Avg Prop Armor Cover (%) 9 | . 8 9 9 17 12 7 9 . Naked Turns 33 | . . . 33 . . . . . Heaviest Build 95 | 13 95 57 57 65 69 77 74 1 Greatest Support 80 | 40 40 12 13 63 80 65 60 3 Greatest Overweight (x) 19 | . 7 4 4 19 5 3 3 . Average Overweight (x) 2 | . 4 4 3 2 1 1 . . Largest Inventory Capacity 25 | 8 25 20 20 20 20 20 20 5 Average Capacity 19 | 6 19 20 19 20 20 20 15 5 Most Carried 25 | 6 25 20 20 20 20 20 20 5 Average Carried 17 | 2 16 19 17 16 17 19 11 5 Final Capacity 20 | 8 20 20 20 20 20 20 5 5 Final Carried 20 | 5 20 20 20 14 18 15 5 5 Class Distribution -------------------- 62% | Mutant 27% | Scavenger-Gladiator 4% | Infiltrator-Mutant 3% | Derelict-Gunner Dominant Class ---------------- Mutant | -10/Materials Mutant | -10/Subcaves Mutant | -9/Scraptown Infiltrator-Mutant | -6/Factory Scavenger-Gladiator | -6/Extension Scavenger-Gladiator | -5/Factory Scavenger-Gladiator | -5/Upper Caves Mutant | -5/Upper Caves Resources | -11 -10 -10 -9 -6 -6 -5 -5 -5 ----------- Run | Yrd Mat Sub Scr Fac Ext Fac Upp Upp Matter Collected 2216 | 260 379 227 131 424 540 190 65 . Remotely . | . . . . . . . . . Salvage Created 3733 | . 767 112 135 862 940 457 460 . Parts 199 | . 49 10 5 45 54 20 16 . Haulers Intercepted . | . . . . . . . . . Recyclers Shooed . | . . . . . . . . . Parts Field Recycled . | . . . . . . . . . Retrieved Matter . | . . . . . . . . . Parts Self-Destructed 25 | . . 11 5 . . . 9 . Prevented . | . . . . . . . . . Parts Restored . | . . . . . . . . . Kills | -11 -10 -10 -9 -6 -6 -5 -5 -5 ------- Run | Yrd Mat Sub Scr Fac Ext Fac Upp Upp Combat Hostiles Destroyed 52 | . 14 5 . 11 13 6 3 . Melee 29 | . . . . 7 13 6 3 . Guns 14 | . 9 1 . 4 . . . . Cannons 4 | . 3 1 . . . . . . AOE 5 | . 2 3 . . . . . . Classes Destroyed 15 | . 6 2 . 3 3 . 1 . Worker 4 | . 2 . . 2 . . . . Builder 3 | . 2 . . . 1 . . . Tunneler 3 | . 1 . . 1 1 . . . Recycler 4 | . 1 . . 2 . 1 . . Operator 1 | . . . . . 1 . . . Watcher 4 | . 3 . . . 1 . . . Swarmer 10 | . . 3 . 3 4 . . . Grunt 23 | . 14 . . 3 2 3 1 . Duelist 3 | . . . . . 3 . . . Sentry 6 | . . . . 2 4 . . . Hunter 6 | . . . . 1 . 3 2 . Programmer 2 | . . . . 2 . . . . Subdweller 2 | . . 2 . . . . . . Samaritan 1 | . . . . . . . 1 . Savage 2 | . . . . . 2 . . . Butcher 1 | . . . . . 1 . . . Best Kill Streak 4 | . 4 3 . 4 3 2 2 . Combat Bots Only 3 | . 3 3 . 3 3 2 2 . Max Kills in Single Turn 4 | . 4 3 . 2 3 1 1 . Gunslinging . | . . . . . . . . . Exploded 3 | . 2 3 . . . . . . Melee 2 | . . . . 1 2 1 1 . Uniques/NPCs Destroyed . | . . . . . . . . . Combat | -11 -10 -10 -9 -6 -6 -5 -5 -5 -------- Run | Yrd Mat Sub Scr Fac Ext Fac Upp Upp Hostile Shots Fired 951 | . 85 15 . 234 404 97 76 40 Missed 299 | . 23 5 . 70 157 18 14 12 Hits 652 | . 62 10 . 164 247 79 62 28 Melee 24 | . . . . 3 16 . 5 . Projectile 628 | . 62 10 . 161 231 79 57 28 AOE 1 | . . . . 1 . . . . Critical Strikes 18 | . . . . 4 6 3 4 1 Damage Taken 10000 | . 858 158 . 2936 2874 1456 1226 492 Core 1927 | . 121 22 . 370 407 280 272 455 Absorbed by Shields 145 | . . . . . 145 . . . Ignored by Resistances 15 | . . . . . . 15 . . Regen/Repaired (Parts) 140 | . . . 140 . . . . . Core Remaining (%) 50 | 100 . . 42 . 8 . . . Volleys Fired 113 | . 84 10 4 15 . . . . Largest 3 | . 2 2 2 3 . . . . Hottest 138 | . 90 90 80 138 . . . . Shots Fired 234 | . 164 18 8 44 . . . . Gun 181 | . 133 9 4 35 . . . . Cannon 51 | . 31 7 4 9 . . . . Launcher 2 | . . 2 . . . . . . Special . | . . . . . . . . . Kinetic 116 | . 75 8 4 29 . . . . Thermal 93 | . 66 8 4 15 . . . . Explosive 2 | . . 2 . . . . . . Electromagnetic 23 | . 23 . . . . . . . Robot Hit Streak 12 | . 9 5 8 12 . . . . Robot Miss Streak 4 | . 4 1 . 1 . . . . Penetration Max . | . . . . . . . . . Secondary Targets 3 | . 1 . . 2 . . . . Max Gunslinging Chain 1 | . 1 . . 1 . . . . Shots Hit Robots 270 | . 110 9 8 56 39 27 21 . Core Hits 108 | . 36 5 3 20 24 11 9 . Critical Kills . | . . . . . . . . . Critical Parts Destroyed . | . . . . . . . . . Critical Strikes 10 | . 5 . . 2 2 . 1 . Burn 5 | . 5 . . . . . . . Sever 1 | . . . . . . . 1 . Melee Attacks 169 | . . . 2 44 58 42 23 . Impact . | . . . . . . . . . Slashing 167 | . . . . 44 58 42 23 . Piercing . | . . . . . . . . . Sneak Attacks 13 | . . . 2 4 4 2 1 . Combat Hostiles . | . . . . . . . . . Follow-up Attacks 21 | . . . . . 7 7 7 . Damage Inflicted 8157 | . 1783 325 91 1917 2006 1134 901 . Guns 1642 | . 1104 132 22 384 . . . . Cannons 615 | . 368 53 69 125 . . . . Explosions 782 | . 311 140 . . 331 . . . Melee 5118 | . . . . 1408 1675 1134 901 . Ramming . | . . . . . . . . . Kinetic 933 | . 526 109 22 276 . . . . Thermal 1549 | . 840 76 69 233 331 . . . Explosive 340 | . 200 140 . . . . . . Electromagnetic 217 | . 217 . . . . . . . Impact . | . . . . . . . . . Slashing 5118 | . . . . 1408 1675 1134 901 . Piercing . | . . . . . . . . . Highest Corruption 20 | . 8 8 . 5 20 . 18 18 Average Corruption 5 | . 6 8 . 3 1 . 16 18 Corruption Purged 4 | . . . . . 4 . . . Corruption Blocked . | . . . . . . . . . Effects 100 | . 36 31 . 2 20 . 6 5 Message Errors 22 | . 10 6 . . 3 . 3 . Matter Fused 31 | . 8 11 . 1 8 . 1 2 Heat Flow Errors 7 | . 3 1 . . 2 . . 1 Energy Discharges 11 | . 6 4 . . 1 . . . Parts Rejected 2 | . 1 . . 1 . . . . Parts Fused 1 | . . . . . 1 . . . Data Loss (minor) 11 | . 3 6 . . 2 . . . Data Loss (major) 9 | . 3 3 . . 1 . 2 . Alerts 3 | . . . . . 2 . . 1 Misdirections 1 | . . . . . . . . 1 Weapon Failures 2 | . 2 . . . . . . . Overload Shots . | . . . . . . . . . Overflow Damage 561 | . 55 10 . 273 171 36 16 . Projectiles 3 | . 3 . . . . . . . Explosions 75 | . 52 10 . . 13 . . . Melee 483 | . . . . 273 158 36 16 . Knockbacks . | . . . . . . . . . Impact . | . . . . . . . . . Kinetic . | . . . . . . . . . Secondary . | . . . . . . . . . Self-Inflicted Damage 221 | . 90 17 . . 114 . . . Shots 4 | . 2 1 . . 1 . . . Rammed . | . . . . . . . . . Targets Rammed . | . . . . . . . . . Kicked . | . . . . . . . . . Crushed . | . . . . . . . . . Highest Temperature 320 | . 294 86 192 320 303 . . 292 Average Temperature 102 | . 94 17 96 128 132 . . 131 Received Heat Transfer 2714 | . 435 30 . 723 843 207 126 350 Effects 8 | . 2 . . 6 . . . . Interference 8 | . 2 . . 6 . . . . Siege Activations . | . . . . . . . . . Martial Activations . | . . . . . . . . . Shielding Activations . | . . . . . . . . . Robots Disrupted . | . . . . . . . . . Combat Hostiles . | . . . . . . . . . Robots Corrupted . | . . . . . . . . . Combat Hostiles . | . . . . . . . . . Parts Fried 1 | . 1 . . . . . . . Impact Corruptions . | . . . . . . . . . Robots Melted . | . . . . . . . . . Combat Hostiles . | . . . . . . . . . Parts Melted 2 | . 1 1 . . . . . . Heat Transferred 3313 | . 2320 136 148 559 150 . . . Parts Sabotaged . | . . . . . . . . . Parts Stolen . | . . . . . . . . . Parts Stripped . | . . . . . . . . . Power Chain Reactions 1 | . 1 . . . . . . . Alert | -11 -10 -10 -9 -6 -6 -5 -5 -5 ------- Run | Yrd Mat Sub Scr Fac Ext Fac Upp Upp Maximum Alert Level 1 | . . . . . 1 . . . Low Security (%) 98 | 100 100 . . 100 95 100 . . Level 1 1 | . . . . . 4 . . . Level 2 . | . . . . . . . . . Level 3 . | . . . . . . . . . Level 4 . | . . . . . . . . . Level 5 . | . . . . . . . . . High Security . | . . . . . . . . . Max Security . | . . . . . . . . . Peak Influence 240 | . 162 . . 49 240 112 . . Initial 112 | . . . . . . 112 . . Average 56 | . 56 . . 9 89 36 . . Influence Increases 2549 | . 503 70 15 376 1029 256 180 120 Destroy 0b10 Robot/C 1360 | . 280 60 . 220 600 140 60 . Destroy 0b10 Robot/NC 130 | . 45 . 15 25 25 15 5 . Destroy Leader 250 | . 66 10 . 70 64 30 10 . Allied During Kill 272 | . . . . . 251 21 . . Successful Hack 97 | . 26 . . 40 17 14 . . Select Force Hacks 30 | . 30 . . . . . . . Disable Machine 90 | . 30 . . . 45 15 . . Destroy Structure 65 | . 26 . . 6 27 6 . . Lose Combat Pursuer 255 | . . . . 15 . 15 105 120 Influence Decreases 2466 | . 503 70 15 376 798 481 132 91 Entered New Map 133 | . . . . . . 119 3 11 Time Decay 1714 | . 473 70 15 217 473 277 119 70 Lost Part 439 | . 30 . . 159 185 45 10 10 Lost Ally 180 | . . . . . 140 40 . . Squads Dispatched 14 | . 2 . . 5 4 3 . . Investigation 6 | . 2 . . 1 3 . . . Extermination 3 | . . . . 2 . 1 . . Reinforcement 3 | . . . . . 1 2 . . Assault 2 | . . . . 2 . . . . Garrison . | . . . . . . . . . Intercept . | . . . . . . . . . Searches Triggered . | . . . . . . . . . Construction Impeded . | . . . . . . . . . Haulers Reinforced 1 | . . . . . . 1 . . Active Scanning Responses . | . . . . . . . . . Cargo Convoy Interrupts . | . . . . . . . . . Stealth | -11 -10 -10 -9 -6 -6 -5 -5 -5 --------- Run | Yrd Mat Sub Scr Fac Ext Fac Upp Upp Distress Signals 4 | . 1 . . 2 . 1 . . Communications Jammed 7 | . . . . 7 . . . . Distress Signals 5 | . . . . 5 . . . . Times Spotted 115 | . 22 5 . 21 29 13 12 13 Peak Tracking Total 9 | . 3 3 . 6 9 3 7 9 Tactical Retreats 10 | . . . . 1 . 1 4 4 Traps | -11 -10 -10 -9 -6 -6 -5 -5 -5 ------- Run | Yrd Mat Sub Scr Fac Ext Fac Upp Upp Traps Triggered 12 | . 6 . . 2 4 . . . Indirectly . | . . . . . . . . . Trap Hack Attempts . | . . . . . . . . . Triggered . | . . . . . . . . . Disarmed . | . . . . . . . . . Reprogrammed . | . . . . . . . . . Reused . | . . . . . . . . . Traps Extracted . | . . . . . . . . . Installed . | . . . . . . . . . Triggered . | . . . . . . . . . Machines | -11 -10 -10 -9 -6 -6 -5 -5 -5 ---------- Run | Yrd Mat Sub Scr Fac Ext Fac Upp Upp Machines Disabled 6 | . 2 . . . 3 1 . . Max in Single Turn 3 | . 2 . . . 3 1 . . Garrison Access 1 | . . . . 1 . . . . Energy Cycler 1 | . . . . . 1 . . . Machines Repaired . | . . . . . . . . . Machines Dismantled . | . . . . . . . . . Machines Sabotaged . | . . . . . . . . . Overloaded Fab Kills . | . . . . . . . . . Hacking | -11 -10 -10 -9 -6 -6 -5 -5 -5 --------- Run | Yrd Mat Sub Scr Fac Ext Fac Upp Upp Machines Accessed 32 | . 9 1 4 6 9 3 . . Terminals 22 | . 8 . . 4 8 2 . . Fabricators . | . . . . . . . . . Repair Stations . | . . . . . . . . . Recycling Units 2 | . 1 . . . 1 . . . Scanalyzers 2 | . . . . 1 . 1 . . Garrison Access 1 | . . . . 1 . . . . Total Hacks 92 | . 24 4 26 15 18 5 . . Successful 55 | . 10 4 26 5 8 2 . . Failed 37 | . 14 . . 10 10 3 . . Catastrophic 6 | . 2 . . . 4 . . . Database Lockouts . | . . . . . . . . . Manual 36 | . 17 . . 7 9 3 . . Terminals 50 | . 22 . . 9 16 3 . . Fabricators . | . . . . . . . . . Repair Stations . | . . . . . . . . . Recycling Units 4 | . 2 . . . 2 . . . Scanalyzers 4 | . . . . 2 . 2 . . Garrison Access 4 | . . . . 4 . . . . Terminal Hacks 36 | . 3 4 26 . 3 . . . Record 29 | . . 4 25 . . . . . Prototype ID Bank 1 | . 1 . . . . . . . Open Door 4 | . . . 1 . 3 . . . Terminal Index 1 | . 1 . . . . . . . Zone Layout 1 | . 1 . . . . . . . Fabricator Hacks . | . . . . . . . . . Repair Station Hacks . | . . . . . . . . . Recycling Unit Hacks . | . . . . . . . . . Scanalyzer 2 | . . . . 1 . 1 . . Retrieve Study 2 | . . . . 1 . 1 . . Garrison Access Hacks . | . . . . . . . . . Unauthorized Hacks 17 | . 7 . . 4 5 1 . . Terminals 15 | . 6 . . 4 4 1 . . Botnet 3 | . 1 . . 1 1 . . . Skim 12 | . 5 . . 3 3 1 . . Fabricators . | . . . . . . . . . Repair Stations . | . . . . . . . . . Recycling Units 2 | . 1 . . . 1 . . . Reject 1 | . . . . . 1 . . . Tunnel 1 | . 1 . . . . . . . Scanalyzers . | . . . . . . . . . Garrison Access . | . . . . . . . . . Data Cores Recovered 1 | . . . . . . 1 . . Used . | . . . . . . . . . Hacking Detections 24 | . 9 . . 6 6 3 . . Full Trace Events 3 | . . . . 1 2 . . . Feedback Events . | . . . . . . . . . Feedback Blocked . | . . . . . . . . . Robot Schematics Acquired . | . . . . . . . . . Robots Built . | . . . . . . . . . Authchips . | . . . . . . . . . Time . | . . . . . . . . . Total Robot Build Rating . | . . . . . . . . . Part Schematics Acquired . | . . . . . . . . . Parts Built . | . . . . . . . . . Authchips . | . . . . . . . . . Time . | . . . . . . . . . Total Part Build Rating . | . . . . . . . . . Part Studies Acquired 2 | . . . . 1 . 1 . . Parts Repaired . | . . . . . . . . . Time . | . . . . . . . . . Parts Recycled . | . . . . . . . . . Recycled Matter . | . . . . . . . . . Retrieved Matter . | . . . . . . . . . Retrieved Components . | . . . . . . . . . Parts Scanalyzed . | . . . . . . . . . Part Schematics Acquired . | . . . . . . . . . Parts Damaged . | . . . . . . . . . Bothacking | -11 -10 -10 -9 -6 -6 -5 -5 -5 ------------ Run | Yrd Mat Sub Scr Fac Ext Fac Upp Upp Used RIF Installer . | . . . . . . . . . Robots Hacked 2 | . . . 2 . . . . . Non-combat 2 | . . . 2 . . . . . Combat . | . . . . . . . . . Robot Hacks Applied 2 | . . . 2 . . . . . parse_system 2 | . . . 2 . . . . . Relay Couplers Released . | . . . . . . . . . Fabnet Peak Effective % . | . . . . . . . . . Robots Rewired 9 | . . . . . 9 . . . Allies Hacked . | . . . . . . . . . Hacks Repelled . | . . . . . . . . . Allies | -11 -10 -10 -9 -6 -6 -5 -5 -5 -------- Run | Yrd Mat Sub Scr Fac Ext Fac Upp Upp Total Allies 14 | . . . . . 14 . . . Largest Group 9 | . . . . . 9 4 . . Highest-Rated Group 238 | . . . . . 238 234 . . Highest-Rated Ally 159 | . . . . . 159 159 . . Total Orders 1 | . . . . 1 . . . . EXPLORE 1 | . . . . 1 . . . . Ally Attacks 117 | . . . . . 103 14 . . Total Damage 2826 | . . . . . 2523 303 . . Kills 21 | . . . . . 18 3 . . Allies Corrupted . | . . . . . . . . . Allies Melted . | . . . . . . . . . Intel | -11 -10 -10 -9 -6 -6 -5 -5 -5 ------- Run | Yrd Mat Sub Scr Fac Ext Fac Upp Upp Active Infowar (turns) 4305 | . . . . 1002 2051 650 522 80 Optics 2719 | . . . . 271 2051 397 . . Sensors 183 | . . . . . . 183 . . Terrain 1357 | . . . . . 110 650 517 80 Structural 1298 | . . . . 972 99 227 . . Seismic 1005 | . . . . . 616 383 6 . Jamming 896 | . . . . 896 . . . . Robot Analysis Total . | . . . . . . . . . Derelict Logs Recovered 6 | . . . 5 . . . . 1 Drone Launches 3 | . . . . 3 . . . . Drone Recoveries 1 | . . . . 1 . . . . Exploration | -11 -10 -10 -9 -6 -6 -5 -5 -5 ------------- Run | Yrd Mat Sub Scr Fac Ext Fac Upp Upp Turns Passed 10588 | 98 1669 1206 3177 1017 2051 667 549 154 Spaces Moved 5845 | 70 685 716 2127 456 867 298 387 239 Core 607 | 27 . . 64 1 3 . 273 239 Treads 285 | 43 175 . . 26 41 . . . Legs 1500 | . . . 24 241 823 298 114 . Wheels 3453 | . 510 716 2039 188 . . . . Hover . | . . . . . . . . . Flight . | . . . . . . . . . Fastest Speed 50 | 50 105 150 50 120 120 175 50 50 Average Speed 152 | 117 178 150 142 158 193 179 108 50 Slowest Speed 1000 | 160 195 150 330 1000 320 315 330 50 Overloaded Moves . | . . . . . . . . . Propulsion Burnouts . | . . . . . . . . . Robots Hopped . | . . . . . . . . . Potential Cave-ins . | . . . . . . . . . Cave-ins Triggered . | . . . . . . . . . Exploration Rate (%) 48 | 4 97 36 87 16 90 8 58 43 Regions Visited 8 Branch Regions 5 Pre-discovered Areas 7 | . 1 . 6 . . . . . Known Exits Taken 5 | . 1 . . 1 1 1 1 . Unknown Exits Taken 3 | 1 . 1 1 . . . . . Scrap Searched 8 | . . 4 3 . . . 1 . Spaces Dug 13 | . . 6 . 4 3 . . . Terrain Destroyed 66 | . 25 11 . 4 26 . . . Melee 7 | . . . . 4 3 . . . Projectile . | . . . . . . . . . AOE 59 | . 25 11 . . 23 . . . Terrain Rammed . | . . . . . . . . . Walls Destroyed . | . . . . . . . . . Machines Disabled . | . . . . . . . . . Actions | -11 -10 -10 -9 -6 -6 -5 -5 -5 --------- Run | Yrd Mat Sub Scr Fac Ext Fac Upp Upp Total 7185 | 86 974 834 2267 661 1197 394 499 273 Wait 520 | . 131 81 62 79 43 27 63 34 Move 5837 | 69 684 715 2126 455 866 297 386 239 Hop . | . . . . . . . . . Pick Up 197 | 11 41 8 37 25 54 14 7 . Fast Attach 8 | . 1 1 1 1 4 . . . Attach 103 | 6 7 . 10 30 28 12 10 . Detach 13 | . . . 5 3 . . 5 . Swap 59 | . 10 7 3 5 27 6 1 . Drop 102 | . 16 12 17 4 35 7 11 . Fire 113 | . 84 10 4 15 . . . . Melee 140 | . . . 2 44 47 31 16 . Ram . | . . . . . . . . . Kick . | . . . . . . . . . Crush . | . . . . . . . . . Escape Stasis 10 | . . . . . 10 . . . Rewire 83 | . . . . . 83 . . . Trap . | . . . . . . . . . Miscellaneous . | . . . . . . . . . Route ------- -11/Scrapyard -10/Materials (discovered 6 exits: *Mat x3 / *Min x2 / *Sub) -10/Subcaves (discovered 2 exits: [*Mat] / *Scr) -9/Scraptown (discovered 2 exits: *Fac x2) -6/Factory (discovered 6 exits: Fac x2 / Low x2 / *Ext x2) -6/Extension (discovered 2 exits: *Fac / [*Cet]) -5/Factory (discovered 2 exits: *Upp x2) -5/Upper Caves -5/Upper Caves (discovered 1 exit: *Fac) History --------- Turn | Location | Event 11 | -11/Scrapyard | Discovered new exit (range 16) 99 | -11/Scrapyard | Entered Materials 131 | -10/Materials | Discovered new exit (range 15) 244 | -10/Materials | Identified exit to Mines 316 | -10/Materials | Build established: Mutant 428 | -10/Materials | Discovered exit to Mines (range 15) 1045 | -10/Materials | Discovered new exit (range 5) 1053 | -10/Materials | Identified exit to Materials 1421 | -10/Materials | Learned Storage stockpile data 1518 | -10/Materials | Learned 2 Mines zone layouts 1551 | -10/Materials | Learned location of 2 exits from Mines 1583 | -10/Materials | Learned location of 1 exit from Storage 1602 | -10/Materials | Learned Materials emergency access door positions 1630 | -10/Materials | Identified exit to Subcaves 1768 | -10/Materials | Entered Subcaves 1769 | -10/Subcaves | Approached by a straggling Scientist 2252 | -10/Subcaves | Discovered new exit (range 14) 2370 | -10/Subcaves | Disturbed a concealed Subdweller 2782 | -10/Subcaves | Visited Clippyterm 2786 | -10/Subcaves | Learned Research machine intel 2863 | -10/Subcaves | Core integrity fell below 50% 2974 | -10/Subcaves | Entered Scraptown 2974 | -9/Scraptown | System corruption cleaned by C-Scrubber 3124 | -9/Scraptown | Scanned Subdweller tech in exchange for log data 3127 | -9/Scraptown | Learned location of Testing (-2) 3129 | -9/Scraptown | Learned Research garrison access intel 3130 | -9/Scraptown | Learned Research terminal intel 3132 | -9/Scraptown | Learned location of Armory (-3) 3133 | -9/Scraptown | Learned Research non-interactive machine intel 3198 | -9/Scraptown | Discovered new exit (range 9) 3671 | -9/Scraptown | Visited UFD Registry 3671 | -9/Scraptown | Registered with UFD as "Steelbrain" 3778 | -9/Scraptown | Delivered Scrap Shield to a Scientist 3946 | -9/Scraptown | Visited Cave Peace 3995 | -9/Scraptown | Visited Red Mages 4049 | -9/Scraptown | Visited CR-KLE's Repair Center 4060 | -9/Scraptown | CR-KLE repaired 3 parts 4084 | -9/Scraptown | Visited IN-MT5's Study 4157 | -9/Scraptown | Visited Science Testing Area 4206 | -9/Scraptown | Visited Assassins FH 4320 | -9/Scraptown | Visited Curators Association 4369 | -9/Scraptown | Visited Junk Repository 4681 | -9/Scraptown | Visited Chapter 10 4708 | -9/Scraptown | Visited Scrapoid Pod Storage 4751 | -9/Scraptown | Visited Scrap Suit Storage 4792 | -9/Scraptown | Visited Abandonware Association 4808 | -9/Scraptown | Learned abandonware demo "TRNCOAT.EXE" 4808 | -9/Scraptown | Learned abandonware demo "MELTYB.EXE" 4886 | -9/Scraptown | Visited Sword Containment 4972 | -9/Scraptown | Visited Observation Area 5035 | -9/Scraptown | Visited Cartography Club 5158 | -9/Scraptown | Released all parts (7) 5189 | -9/Scraptown | Lost 9 parts (4u5w) 5192 | -9/Scraptown | Found Deep Structural Scanner 5203 | -9/Scraptown | Learned location of Lower Caves (-6) 5203 | -9/Scraptown | Learned location of Zion (-7) 5203 | -9/Scraptown | Learned 12 Materials zone layouts 5203 | -9/Scraptown | Learned 16 Research zone layouts 5203 | -9/Scraptown | Learned 4 Access zone layouts 5203 | -9/Scraptown | Learned 4 Storage zone layouts 5203 | -9/Scraptown | Learned 24 Factory zone layouts 5203 | -9/Scraptown | Learned 8 Upper Caves zone layouts 5203 | -9/Scraptown | Learned 24 Proximity Caves zone layouts 5203 | -9/Scraptown | Learned 4 Hub_04(d) zone layouts 5203 | -9/Scraptown | Learned Research emergency access door positions 5203 | -9/Scraptown | Learned location of 3 exits from Factory 5203 | -9/Scraptown | Learned location of 2 exits from Lower Caves 6061 | -9/Scraptown | Met Optimus 6061 | -9/Scraptown | Accepted into 0bPrime 6138 | -9/Scraptown | Discovered new exit (range 5) 6151 | -9/Scraptown | Entered Factory 6151 | -6/Factory | Evolved 8 slots: Propulsion x2, Utility x5, Weapon x1 6152 | -6/Factory | Identified exit to Lower Caves 6153 | -6/Factory | Identified exit to Factory 6153 | -6/Factory | Identified exit to Extension 6482 | -6/Factory | Build established: Derelict-Gunner 6641 | -6/Factory | Lost 7 parts (4n3w) 6681 | -6/Factory | Lost 3 parts (1n2u) 6863 | -6/Factory | Build established: Infiltrator-Mutant 7142 | -6/Factory | Lost 4 parts (1p2n1u) 7168 | -6/Factory | Entered Extension 7256 | -6/Extension | Core integrity fell below 50% 7284 | -6/Extension | Lost 3 parts (1p1n1u) 7637 | -6/Extension | Build established: Scavenger-Gladiator 7755 | -6/Extension | Rescued a captive Derelict 7957 | -6/Extension | Rescued a captive Derelict 7957 | -6/Extension | Rescued a captive Derelict 8486 | -6/Extension | Spotted B-75 Beast 8500 | -6/Extension | Spotted B-75 Beast 8531 | -6/Extension | Allies destroyed B-75 Beast 8538 | -6/Extension | Allies destroyed B-75 Beast 8572 | -6/Extension | Lost 4 allies 8580 | -6/Extension | Lost 12 parts (2p6n3u1w) 8710 | -6/Extension | Rescued a captive Derelict 8794 | -6/Extension | Energy Cycler disabled 8794 | -6/Extension | Rescued a captive Derelict 8797 | -6/Extension | Rescued a captive Derelict 8797 | -6/Extension | Rescued a captive Derelict 8800 | -6/Extension | Rescued a captive Derelict 8802 | -6/Extension | Rescued A7 8820 | -6/Extension | Murdered 3 allies 8917 | -6/Extension | Core integrity fell below 20% 8954 | -6/Extension | Lost 5 parts (1p2n1u1w) 9083 | -6/Extension | Discovered exit to Factory (range 10) 9086 | -6/Extension | Discovered new exit (range 6) 9214 | -6/Extension | System corruption reached 10% 9219 | -6/Extension | Entered Factory 9219 | -5/Factory | Accompanied by 4 allies (A7) 9219 | -5/Factory | Evolved 2 slots: Utility x2 9220 | -5/Factory | Identified exit to Upper Caves 9773 | -5/Factory | Lost 3 allies 9856 | -5/Factory | Lost 10 parts (2p5n3u) 9886 | -5/Factory | Entered Upper Caves 9888 | -5/Upper Caves | UFD Scientist delivered a prototype 9893 | -5/Upper Caves | Found Prototype Protection 9895 | -5/Upper Caves | Identified Enh. Scrap Shield 10244 | -5/Upper Caves | Attracted the attention of an 0b10 outpost 10277 | -5/Upper Caves | System corruption reached 10% 10279 | -5/Upper Caves | Core integrity fell below 50% 10289 | -5/Upper Caves | Encountered a Warlord checkpoint 10310 | -5/Upper Caves | Lost 8 parts (1n4u3w) 10418 | -5/Upper Caves | Entered a destroyed Warlord outpost 10421 | -5/Upper Caves | Discovered new exit (range 15) 10435 | -5/Upper Caves | Identified exit to Upper Caves 10435 | -5/Upper Caves | Entered another Upper Caves area 10444 | -5/Upper Caves | Discovered new exit (range 13) 10450 | -5/Upper Caves | Identified exit to Factory 10475 | -5/Upper Caves | Spotted B-75 Beast 10550 | -5/Upper Caves | Build established: Mutant 10573 | -5/Upper Caves | Core integrity fell below 20% 10583 | -5/Upper Caves | Learned 12 Factory zone layouts 10589 | -5/Upper Caves | Destroyed by S-27 Virus with Autogun Last Messages --------------- 10412_ /#D>NXY6SOF01&>EPYIWUTW|GJEI3LNKJK3ES IN 10421_ EXIT=FOUND 10431_ System corrupted: Substantial component data lost. 10435_ EXIT=IDENTIFIED: UPPER CAVES LOCATION=UPPER CAVES GOAL=ESCAPE 10444_ EXIT=FOUND 10450_ EXIT=IDENTIFIED: FACTORY 10473_ System corrupted: IFF burst signal emitted. 10493_ System corrupted: Matter fused (-8). 10515_ Imp. Terrain Scanner destroyed. 10517_ Knocked back. 10520_ Critical hit (Meltdown: +320). 10567_ A0-ZPS(S) destroyed. 10571_ System corrupted: Heat flow error (+155). 10583_ Acquired derelict log, extracted data. Data stored: Factory zone layouts (x12). 10588_ System corrupted: Matter fused (-8). Map ----- +----------------------------------------------------+ | ?????????????????????????????????????????????????? | | ?????????????????????????????????????????????????? | | ?????????????????????????????????????????????????? | | ?????????????????????????????????????????????????? | | ?????????????????????????????????????????????????? | | ?????????????????????????????????????????????????? | | ?????????????????????????????????????????????????? | | ?????????????????????????????????????????????????? | | ?????????????????????????????????????????????????? | | ?????????????????????????????????????????????????? | | ????????????????????????# ???????????????????????? | | ???????????????????????? ???????????????????????? | | ???????????????????????# ??? ???????????????????? | | ???????????????????????# ?? ?####??????????????? | | ???????????????????????# ?? ??????????????? | | ???????????????????????# ?? " ???????????????? | | ???????????????????????# ?" "] ??????????????? | | ???????????????????????# # ??????????????? | | ??????????????????????? # ???????????????? | | ???????????????????????# # ??? ??????????? | | ???????????????????????# # T?? #????????? | | ???????????????????????# # ? ""? #????????? | | ???????????????????????# " ?? "# #????????? | | ???????????????????????# ####+ # #????????? | | ???????????????????????# % #????????? | | ???????????????????????# @ = #?????????? | | ???????????????????????### ###### #?????????? | | ?????????????????????????# ##?# #?????????? | | ?????????????????????????# #?# #??######?? | | ??????????????#??????????## #??# #?# #?? | | ??????????????# ???????# ##?# #? # #?? | | ???????????????? ????## #?# ## ## ### | | ???????????????????# ### s### #?# ## | | ???????????????????# # s #??# # | | ???????????????????# #??# | | ???????????? ######### #??# | | ???????????? $ ?????????# #### | | ???????????? ##### ??????????###### | | ??????????????????# ????????????????# | | ??????????????????#????????????????# ####### | | ???????????????????????????????? #?????# | | ????????????????????????????? #?????# | | ?????????????????????????????####### #####?????# | | ???????????????????????????????????####?????????# | | ????????????????????????????????????????????????# | | ????????????????????????????????????????????????# | | ????????????????????????????????????????????????# | | ????????????????????????????????????????????????# | | ????????????????????????????????????????????????# | | ????????????????????????????????????????????????## | +----------------------------------------------------+ Best States ------------- Heat Dissipation 40 Energy Generation 18 Energy Capacity 290 Matter Stores 300 Matter Capacity 300 Sight Range 22 Robot Scan Range 15 Terrain Scan Range 20 Terrain Scan Density 210 Jamming Range 12 Additional Mass Support 9 Armor Coverage 800 Resistance: TH 15 Melee Speed Boost 40 Evasion (%) 55 Targeting Accuracy 6 Melee Accuracy 12 Core Analysis 6 Recoil Reduction 3 Offensive Hacking 10 Trap Extractor Capacity 4 Item Schematics ----------------- None Robot Schematics ------------------ None Fabricated ------------ Nothing Repaired ---------- Nothing Studied --------- Plasma Cannon | -6/Factory | Hacked Carbon-fiber Leg | -5/Factory | Hacked Alien Tech Used ----------------- None Achievements -------------- Ambidextrous Loot Taster Challenges ------------ None Game ------ Seed WardroneLongswordCartridge Manual? 0 Play Time 01:18:55 Cumulative 171.2 hours Start 2025.11.02 @ 13:11:01 End 2025.11.02 @ 14:29:32 Sessions 1 Manual Loads 0 Difficulty Rogue Special Mode None Game No. 117 Rogue 117 Adventurer 0 Explorer 0 Win Type - Total 6 Types 4/0/1/1/0/0/0/0/0/0 Lore% 82 Gallery% 72 Achievement% 54 Wizard Run 0 Options --------- Layout 1 ASCII 0 Keyboard 0 Movement Mouse Keybinds 0 Fullscreen 2 Font 24/Smallcaps Map View 50x35 Zoom Use 0% Tactical HUD 1 Map Filters NONE Filters NONE Steam 1 RUN: 86af7dcd-de47-4bb9-bf70-cd74fc152e92